fUSD/lending_fUSD_20260527
["ID","MTS","AMOUNT","RATE_DAILY","PERIOD"]
[423091654,1779837039000,-300.0,0.00035294,2]
[423091653,1779837039000,-300.0,0.00035294,2]
[423091688,1779837039000,-300.0,0.00035294,2]
[423091658,1779837039000,-300.0,0.00035294,2]
[423091660,1779837039000,-1263.82495173,0.00035294,2]
[423091662,1779837039000,-300.0,0.00035294,2]
[423091664,1779837039000,-344.4170137,0.00035294,2]
[423091666,1779837039000,-300.0,0.00035294,2]
[423091668,1779837039000,-300.0,0.00035294,2]
[423091670,1779837039000,-300.0,0.00035294,2]
[423091676,1779837039000,-1148.70755237,0.00035294,2]
[423091674,1779837039000,-950.21744792,0.00035294,2]
[423091680,1779837039000,-309.98994128,0.00035294,2]
[423091678,1779837039000,-300.0,0.00035294,2]
[423091672,1779837039000,-300.0,0.00035294,2]
[423091684,1779837039000,-300.0,0.00035294,2]
[423091682,1779837039000,-300.0,0.00035294,2]
[423091656,1779837039000,-300.0,0.00035294,2]
[423091760,1779837039000,-300.0,0.00035294,2]
[423091828,1779837039000,-300.0,0.00035294,2]
[423091758,1779837039000,-300.0,0.00035294,2]
[423091818,1779837039000,-300.0,0.00035294,2]
[423091822,1779837039000,-300.0,0.00035294,2]
[423091820,1779837039000,-300.0,0.00035294,2]
[423091821,1779837039000,-344.4170137,0.00035294,2]
[423091823,1779837039000,-300.0,0.00035294,2]
[423091825,1779837039000,-300.0,0.00035294,2]
[423091824,1779837039000,-300.0,0.00035294,2]
[423091826,1779837039000,-865.53028801,0.00035294,2]
[423091839,1779837039000,-300.0,0.00035294,2]
[423091838,1779837039000,-300.0,0.00035294,2]
[423091829,1779837039000,-1148.70755237,0.00035294,2]
[423091827,1779837039000,-950.21744792,0.00035294,2]
[423091832,1779837039000,-300.0,0.00035294,2]
[423091830,1779837039000,-309.98994128,0.00035294,2]
[423091752,1779837039000,-300.0,0.00035294,2]
[423091833,1779837039000,-1633.90603547,0.00035294,2]
[423091835,1779837039000,-300.0,0.00035294,2]
[423091837,1779837039000,-594.73329586,0.00035294,2]
[423091834,1779837039000,-300.0,0.00035294,2]
[423091836,1779837039000,-300.0,0.00035294,2]
[423091840,1779837039000,-464.43646992,0.00035294,2]
[423091843,1779837039000,-300.0,0.00035294,2]
[423091841,1779837039000,-300.0,0.00035294,2]
[423091844,1779837039000,-452.48121198,0.00035294,2]
[423091842,1779837039000,-578.19877315,0.00035294,2]
[423091846,1779837039000,-300.0,0.00035294,2]
[423091845,1779837039000,-300.0,0.00035294,2]
[423091817,1779837039000,-300.0,0.00035294,2]
[423091819,1779837039000,-1263.82495173,0.00035294,2]
[423091831,1779837039000,-300.0,0.00035294,2]
[423091816,1779837039000,-300.0,0.00035294,2]
[423091815,1779837039000,-300.0,0.00035294,2]
[423091756,1779837039000,-300.0,0.00035294,2]
[423091754,1779837039000,-300.0,0.00035294,2]
[423091762,1779837039000,-300.0,0.00035294,2]
[423091764,1779837039000,-300.0,0.00035294,2]
[423091766,1779837039000,-300.0,0.00035294,2]
[423091770,1779837039000,-300.0,0.00035294,2]
[423091779,1779837039000,-300.0,0.00035294,2]
[423091781,1779837039000,-300.0,0.00035294,2]
[423091772,1779837039000,-493.32888988,0.00035294,2]
[423091774,1779837039000,-300.0,0.00035294,2]
[423091776,1779837039000,-300.0,0.00035294,2]
[423091786,1779837039000,-300.0,0.00035294,2]
[423091784,1779837039000,-605.24124213,0.00035294,2]
[423091768,1779837039000,-300.000001,0.00035294,2]
[423091801,1779837039000,-726.99445071,0.00035294,2]
[423091813,1779837039000,-300.0,0.00035294,2]
[423091788,1779837039000,-300.0,0.00035294,2]
[423091814,1779837039000,-300.0,0.00035294,2]
[423091799,1779837039000,-894.55274135,0.00035294,2]
[423091811,1779837039000,-300.96252262,0.00035294,2]
[423091795,1779837039000,-1068.30020172,0.00035294,2]
[423091792,1779837039000,-300.0,0.00035294,2]
[423091809,1779837039000,-300.0,0.00035294,2]
[423091797,1779837039000,-528.42557,0.00035294,2]
[423091803,1779837039000,-300.0,0.00035294,2]
[423091805,1779837039000,-302.1844563,0.00035294,2]
[423091807,1779837039000,-300.0,0.00035294,2]
[423091790,1779837039000,-300.0,0.00035294,2]
[423091872,1779837040000,-500.0,0.00035744,120]
[423091868,1779837040000,-200.0,0.00035616,90]
[423091870,1779837040000,-1349.83,0.00035655,120]
[423091871,1779837040000,-159.16,0.0003573,80]
[423091867,1779837040000,-200.0,0.00035616,90]
[423091869,1779837040000,-163.802164,0.00035616,90]
[423091873,1779837040000,-157.3822,0.00035837,2]
[423091880,1779837040000,-400.0,0.00035951,2]
[423091875,1779837040000,-382.42761093,0.00035892,2]
[423091876,1779837040000,-500.0,0.00035899,120]
[423091877,1779837040000,-1000.0,0.000359,13]
[423091878,1779837040000,-150.0,0.00035927,7]
[423091881,1779837040000,-518.64,0.00035999,2]
[423091866,1779837040000,-200.0,0.00035616,90]
[423091882,1779837040000,-518.64,0.00035999,2]
[423091874,1779837040000,-194.72792766,0.00035892,2]
[423091862,1779837040000,-164.11666666,0.00035616,60]
[423091847,1779837040000,-300.0,0.00035294,2]
[423091859,1779837040000,-153.0,0.000356,30]
[423091888,1779837040000,-151.0,0.00036,7]
[423091852,1779837040000,-187.78006524,0.00035344,2]
[423091850,1779837040000,-300.0,0.00035294,2]
[423091851,1779837040000,-250.0,0.00035294,30]
[423091848,1779837040000,-300.0,0.00035294,2]
[423091849,1779837040000,-300.0,0.00035294,2]
[423091853,1779837040000,-799.54513344,0.00035344,2]
[423091863,1779837040000,-151.57016205,0.00035616,7]
[423091854,1779837040000,-150.0,0.00035505,30]
[423091865,1779837040000,-151.0,0.00035616,7]
[423091856,1779837040000,-150.0,0.00035582,7]
[423091855,1779837040000,-211.31,0.00035563,14]
[423091860,1779837040000,-162.0,0.000356,30]
[423091861,1779837040000,-4514.19372464,0.0003561,2]
[423091858,1779837040000,-151.0,0.000356,30]
[423091857,1779837040000,-157.0,0.00035596,30]
[423091884,1779837040000,-210.10726048,0.00036,120]
[423091864,1779837040000,-303.14032409,0.00035616,7]
[423091885,1779837040000,-268.4489658,0.00036,120]
[423091908,1779837040000,-509.90076802,0.00036399,120]
[423091907,1779837040000,-500.0,0.00036399,7]
[423091909,1779837040000,-518.64,0.00036399,2]
[423091910,1779837040000,-151.0,0.000364,7]
[423091912,1779837040000,-1890.27613519,0.000364,30]
[423091915,1779837040000,-871.643,0.000364,30]
[423091918,1779837040000,-484.71261076,0.00035294,2]
[423091904,1779837040000,-419.0,0.00036399,120]
[423091911,1779837040000,-36213.89168711,0.000364,30]
[423091913,1779837040000,-916.60502421,0.000364,30]
[423091916,1779837040000,-167.0,0.000296,30]
[423091917,1779837040000,-167.0,0.000306,30]
[423091919,1779837040000,-310.24516055,0.00035294,2]
[423091921,1779837040000,-8904.45631278,0.000364,30]
[423091920,1779837040000,-289.65348005,0.000364,30]
[423091879,1779837040000,-400.0,0.00035951,2]
[423091914,1779837040000,-852.51481247,0.000364,30]
[423091905,1779837040000,-500.0,0.00036399,120]
[423091902,1779837040000,-170.231963,0.00036361,120]
[423091906,1779837040000,-500.0,0.00036399,120]
[423091886,1779837040000,-620.22726647,0.00036,120]
[423091883,1779837040000,-197.19,0.00036,30]
[423091887,1779837040000,-166.82913183,0.00036,120]
[423091889,1779837040000,-211.31,0.00036085,14]
[423091890,1779837040000,-267.4,0.00036153,30]
[423091892,1779837040000,-4695.14275989,0.00036209,2]
[423091901,1779837040000,-134.028037,0.00036361,120]
[423091893,1779837040000,-558.331,0.00036234,2]
[423091891,1779837040000,-203.32,0.00036167,2]
[423091898,1779837040000,-111.35521508,0.00036312,2]
[423091897,1779837040000,-159.16,0.000363,110]
[423091899,1779837040000,-130.55597008,0.00036312,2]
[423091895,1779837040000,-263.92,0.00036261,2]
[423091896,1779837040000,-150.0,0.00036273,7]
[423091900,1779837040000,-200.57879365,0.00036317,3]
[423091903,1779837040000,-3545.0,0.00036362,2]
[423091894,1779837040000,-1225.0,0.00036234,2]
[423091938,1779837043000,-151.0,0.00035616,7]
[423091934,1779837043000,-167.0,0.000316,30]
[423091933,1779837043000,-191.492458,0.00029634,14]
[423091935,1779837043000,-167.0,0.000326,30]
[423091937,1779837043000,-300.0,0.00035294,2]
[423091936,1779837043000,-300.0,0.00035294,2]
[423091940,1779837043000,-488.77570104,0.0003639,10]
[423091941,1779837043000,-121.03429896,0.0003639,10]
[423091942,1779837043000,-1822.2126048,0.000364,30]
[423091943,1779837043000,-608.0,0.000364,30]
[423091939,1779837043000,-153.43337,0.00035616,7]
[423091981,1779837044000,-1000.0,0.00037,2]
[423091969,1779837044000,-154.13,0.00036851,60]
[423091970,1779837044000,-150.79,0.0003686,60]
[423091966,1779837044000,-150.79,0.0003676,60]
[423091962,1779837044000,-154.13,0.00036651,60]
[423091963,1779837044000,-150.79,0.0003666,60]
[423091968,1779837044000,-161.57,0.00036851,60]
[423091972,1779837044000,-200.0,0.0003688,120]
[423091967,1779837044000,-197.19,0.000368,30]
[423091965,1779837044000,-154.13,0.00036751,60]
[423091971,1779837044000,-159.16,0.0003688,120]
[423091973,1779837044000,-345.0,0.0003688,120]
[423091975,1779837044000,-161.57,0.00036951,60]
[423091982,1779837044000,-200.03348725,0.0003704,2]
[423091976,1779837044000,-154.13,0.00036951,60]
[423091964,1779837044000,-161.57,0.00036751,60]
[423091961,1779837044000,-161.57,0.00036651,60]
[423091959,1779837044000,-211.31,0.00036606,30]
[423091958,1779837044000,-150.79,0.0003656,60]
[423091946,1779837044000,-215.32002731,0.0003644,2]
[423091944,1779837044000,-80690.74694339,0.000364,30]
[423091947,1779837044000,-161.57,0.00036451,60]
[423091948,1779837044000,-154.13,0.00036451,60]
[423091945,1779837044000,-795.0,0.000364,30]
[423091949,1779837044000,-371.1,0.00036451,30]
[423091960,1779837044000,-150.0,0.00036618,7]
[423091951,1779837044000,-150.79,0.0003646,60]
[423091957,1779837044000,-189.68964993,0.0003656,60]
[423091953,1779837044000,-150.0,0.00036464,30]
[423091952,1779837044000,-253.0,0.00036464,30]
[423091954,1779837044000,-249.0,0.00036551,60]
[423091956,1779837044000,-154.13,0.00036551,60]
[423091950,1779837044000,-189.68,0.0003646,60]
[423091955,1779837044000,-161.57,0.00036551,60]
[423091983,1779837044000,-9904.6097,0.0003705,2]
[423091980,1779837044000,-617.0,0.00037,2]
[423091977,1779837044000,-150.79,0.0003696,60]
[423092001,1779837044000,-150.0,0.00037424,30]
[423091996,1779837044000,-150.0,0.00037309,7]
[423091997,1779837044000,-150.0,0.00037313,2]
[423092000,1779837044000,-150.79,0.0003736,60]
[423091999,1779837044000,-161.57,0.00037351,60]
[423092004,1779837044000,-400.0,0.00037449,2]
[423091998,1779837044000,-177.0,0.00037313,2]
[423092003,1779837044000,-164.11666666,0.00037443,60]
[423092010,1779837044000,-1097.29439826,0.00037599,30]
[423092011,1779837044000,-1097.29439826,0.00037599,30]
[423092012,1779837044000,-500.0,0.00037599,120]
[423092009,1779837044000,-150.79,0.0003756,60]
[423092015,1779837044000,-4791.61870841,0.000376,30]
[423092013,1779837044000,-500.0,0.00037599,30]
[423092008,1779837044000,-150.79,0.0003746,60]
[423092007,1779837044000,-161.59246433,0.00037451,60]
[423092002,1779837044000,-241.91118516,0.00037429,2]
[423092005,1779837044000,-159.16,0.0003745,60]
[423091979,1779837044000,-630.0,0.00037,2]
[423091978,1779837044000,-150.0,0.00036964,7]
[423092014,1779837044000,-500.0,0.00037599,120]
[423092006,1779837044000,-218.0,0.00037451,60]
[423091985,1779837044000,-154.13,0.00037051,60]
[423091986,1779837044000,-150.79,0.0003706,60]
[423091992,1779837044000,-161.57,0.00037251,60]
[423091989,1779837044000,-154.13924643,0.00037151,60]
[423091984,1779837044000,-161.57,0.00037051,60]
[423091987,1779837044000,-211.31,0.00037128,30]
[423091994,1779837044000,-507.0,0.00037286,14]
[423091990,1779837044000,-4695.14275989,0.00037157,2]
[423091988,1779837044000,-161.57,0.00037151,60]
[423091974,1779837044000,-200.0,0.0003691,30]
[423091991,1779837044000,-150.79,0.0003716,60]
[423091993,1779837044000,-150.79,0.0003726,60]
[423091995,1779837044000,-790.0,0.0003729,5]
[423092018,1779837046000,-167.0,0.000346,30]
[423092024,1779837046000,-825.62062013,0.000376,30]
[423092023,1779837046000,-300.0,0.00035294,2]
[423092017,1779837046000,-167.0,0.000336,30]
[423092020,1779837046000,-300.0,0.00035294,2]
[423092021,1779837046000,-4654.95496873,0.000376,30]
[423092019,1779837046000,-305.654,0.00035024,2]
[423092022,1779837046000,-396.79038489,0.000376,30]
[423092025,1779837046000,-378.69464344,0.000376,30]
[423092247,1779837368000,595.74,0.00011808,2]
[423092249,1779837368000,595.74,0.00013051,2]
[423092248,1779837368000,595.74,0.00012429,2]
[423092251,1779837369000,595.74,0.00014294,2]
[423092250,1779837369000,595.74,0.00013672,2]
[423092252,1779837370000,595.74,0.00014915,2]
[423092261,1779837937000,271.98,0.0002805,120]
[423092263,1779838018000,-199.03021815,0.00015536,2]
[423092262,1779838018000,-150.0,0.0001507,2]
[423092264,1779838029000,163.04,0.00025943,120]
[423092268,1779838227000,160.87,8.065e-05,2]
[423092269,1779838227000,160.87,0.00010081,2]
[423092271,1779838228000,160.87,0.00014114,2]
[423092270,1779838228000,160.87,0.00012098,2]
[423092305,1779838232000,-866.0,0.00016433,2]
[423092299,1779838232000,-500.0,0.00016338,2]
[423092295,1779838232000,-595.74,0.00016158,2]
[423092297,1779838232000,-150.0,0.00016198,2]
[423092307,1779838232000,-1200.0,0.00016433,2]
[423092303,1779838232000,-166.66,0.00016407,2]
[423092320,1779838232000,-2019.00692458,0.00016434,2]
[423092312,1779838232000,-136.2788447,0.00016433,2]
[423092315,1779838232000,-163.7211553,0.00016433,2]
[423092310,1779838232000,-300.0,0.00016433,2]
[423092318,1779838232000,-2016.77436939,0.00016434,2]
[423092301,1779838232000,-150.0,0.00016354,2]
[423092321,1779838232000,-3493.21870603,0.00016434,2]
[423092325,1779838232000,-7564.4178502,0.0001651,2]
[423092324,1779838232000,-7167.71097759,0.0001651,2]
[423092291,1779838232000,-160.87,0.0001613,2]
[423092287,1779838232000,-163.5,0.00015905,2]
[423092288,1779838232000,-209.0,0.00015917,2]
[423092274,1779838232000,-166.66,0.00015433,2]
[423092276,1779838232000,-33.34,0.00015485,2]
[423092275,1779838232000,-300.0,0.00015485,2]
[423092278,1779838232000,-396.70978185,0.00015536,2]
[423092277,1779838232000,-466.66,0.00015485,2]
[423092279,1779838232000,-250.0,0.00015556,2]
[423092293,1779838232000,-2193.0,0.00016152,2]
[423092281,1779838232000,-150.0,0.00015731,2]
[423092283,1779838232000,-1144.316888,0.0001577,2]
[423092282,1779838232000,-166.66,0.00015758,2]
[423092286,1779838232000,-150.0,0.00015886,2]
[423092285,1779838232000,-156.75743837,0.00015786,2]
[423092289,1779838232000,-150.0,0.00016042,2]
[423092290,1779838232000,-166.66,0.00016083,2]
[423092280,1779838232000,-250.0,0.00015645,2]
[423092326,1779838232000,-3679.94,0.0001663,2]
[423092338,1779838232000,-54960.85478118,0.00017787,2]
[423092323,1779838232000,-172.0,0.00016509,2]
[423092346,1779838232000,-307.98900444,0.000179,2]
[423092344,1779838232000,-314.36119074,0.000179,2]
[423092345,1779838232000,-314.36119073,0.000179,2]
[423092343,1779838232000,-156.75743837,0.000178,2]
[423092351,1779838232000,-595.74,0.00018022,2]
[423092350,1779838232000,-420.0,0.00017959,2]
[423092349,1779838232000,-307.98900443,0.000179,2]
[423092352,1779838232000,-1680.0,0.00018049,2]
[423092353,1779838232000,-314.36119073,0.00018217,2]
[423092359,1779838232000,-1254.41808677,0.00018891,2]
[423092356,1779838232000,-595.74,0.00018644,2]
[423092358,1779838232000,-28620.02654713,0.00018891,2]
[423092357,1779838232000,-163.04,0.00018868,2]
[423092322,1779838232000,-231.3,0.00016438,2]
[423092354,1779838232000,-3637.74,0.00018356,2]
[423092342,1779838232000,-2090.0621679,0.000178,2]
[423092355,1779838232000,-231.3,0.0001841,2]
[423092347,1779838232000,-307.98900443,0.000179,2]
[423092348,1779838232000,-307.98900443,0.000179,2]
[423092327,1779838232000,-550.0,0.0001663,2]
[423092329,1779838232000,-595.74,0.00016779,2]
[423092330,1779838232000,-156.75743837,0.00016793,2]
[423092328,1779838232000,-166.66,0.00016732,2]
[423092333,1779838232000,-500.0,0.00016976,2]
[423092336,1779838232000,-595.74,0.00017401,2]
[423092334,1779838232000,-166.66,0.00017057,2]
[423092331,1779838232000,-200.37581405,0.00016976,2]
[423092332,1779838232000,-300.0,0.00016976,2]
[423092335,1779838232000,-250.0,0.0001709,2]
[423092339,1779838232000,-29479.25386919,0.00017787,2]
[423092341,1779838232000,-8984.80851198,0.00017787,2]
[423092340,1779838232000,-6827.94283765,0.00017787,2]
[423092337,1779838232000,-693.0,0.00017744,2]
[423092394,1779838238000,-271.98,0.00019173,2]
[423092396,1779838238000,-500.0,0.00019439,2]
[423092391,1779838238000,-1852.42,0.00019156,2]
[423092392,1779838238000,-4089.87,0.00019156,2]
[423092395,1779838238000,-595.74,0.00019265,2]
[423092405,1779838238000,-2351.0,0.00019823,2]
[423092393,1779838238000,-500.0,0.00019165,2]
[423092399,1779838238000,-1763.64,0.00019561,2]
[423092410,1779838238000,-22066.67946,0.0001996,2]
[423092409,1779838238000,-1056.76,0.00019888,2]
[423092398,1779838238000,-200.0,0.00019529,2]
[423092388,1779838238000,-500.0,0.00019155,2]
[423092397,1779838238000,-2500.0,0.00019443,2]
[423092389,1779838238000,-500.0,0.00019155,2]
[423092379,1779838238000,-500.0,0.00019155,2]
[423092385,1779838238000,-500.0,0.00019155,2]
[423092406,1779838238000,-500.0,0.00019868,2]
[423092372,1779838238000,-904.1372,0.00018891,2]
[423092373,1779838238000,-1373.25000103,0.00018891,2]
[423092374,1779838238000,-1222.69478,0.00018891,2]
[423092375,1779838238000,-3431.39827791,0.00018891,2]
[423092377,1779838238000,-500.0,0.00018892,2]
[423092387,1779838238000,-500.0,0.00019155,2]
[423092380,1779838238000,-500.0,0.00019155,2]
[423092378,1779838238000,-500.0,0.00018951,2]
[423092376,1779838238000,-16965.90510716,0.00018891,2]
[423092384,1779838238000,-500.0,0.00019155,2]
[423092382,1779838238000,-500.0,0.00019155,2]
[423092386,1779838238000,-433.54971885,0.00019155,2]
[423092383,1779838238000,-500.0,0.00019155,2]
[423092381,1779838238000,-500.0,0.00019155,2]
[423092408,1779838238000,-219.08,0.00019887,2]
[423092390,1779838238000,-500.0,0.00019155,2]
[423092407,1779838238000,-595.74,0.00019887,2]
[423092400,1779838238000,-304.79,0.00019603,2]
[423092462,1779838238000,-151.0,0.00021379,2]
[423092458,1779838238000,-151.0,0.00021379,2]
[423092452,1779838238000,-151.0,0.00021379,2]
[423092450,1779838238000,-151.0,0.00021379,2]
[423092446,1779838238000,-151.0,0.00021379,2]
[423092444,1779838238000,-151.0,0.00021379,2]
[423092448,1779838238000,-151.0,0.00021379,2]
[423092442,1779838238000,-151.0,0.00021379,2]
[423092435,1779838238000,-323.0052,0.00021342,2]
[423092454,1779838238000,-151.0,0.00021379,2]
[423092456,1779838238000,-151.0,0.00021379,2]
[423092439,1779838238000,-151.0,0.00021379,2]
[423092437,1779838238000,-166.66,0.00021364,2]
[423092433,1779838238000,-500.0,0.00021342,10]
[423092460,1779838238000,-151.0,0.00021379,2]
[423092428,1779838238000,-163.04,0.00021226,2]
[423092418,1779838238000,-595.74,0.00020508,2]
[423092404,1779838238000,-12226.51650359,0.00019813,2]
[423092402,1779838238000,-587.0,0.00019626,2]
[423092412,1779838238000,-170.0,0.0002,2]
[423092414,1779838238000,-231.3,0.00020381,2]
[423092426,1779838238000,-595.74,0.0002113,2]
[423092403,1779838238000,-150.0,0.00019628,2]
[423092413,1779838238000,-250.38,0.00020167,2]
[423092415,1779838238000,-1056.76,0.00020385,2]
[423092416,1779838238000,-2090.06216786,0.00020478,2]
[423092422,1779838238000,-166.66,0.00020681,2]
[423092411,1779838238000,-1939.0,0.0002,2]
[423092424,1779838238000,-1056.76,0.00020882,2]
[423092430,1779838238000,-500.0,0.00021342,10]
[423092420,1779838238000,-250.0,0.00020529,2]
[423092526,1779838239000,-823.0,0.00021449,2]
[423092542,1779838239000,-231.3,0.00022353,2]
[423092512,1779838239000,-151.0,0.00021379,2]
[423092514,1779838239000,-151.0,0.00021379,2]
[423092528,1779838239000,-595.74,0.00021751,2]
[423092532,1779838239000,-1056.76,0.00021877,2]
[423092534,1779838239000,-5000.0,0.00021918,2]
[423092540,1779838239000,-3190.93345753,0.00022253,2]
[423092536,1779838239000,-1763.64,0.00022007,2]
[423092538,1779838239000,-166.66,0.00022047,2]
[423092551,1779838239000,-166.66,0.00022729,2]
[423092553,1779838239000,-595.74,0.00022994,2]
[423092530,1779838239000,-2810.0,0.00021772,2]
[423092562,1779838239000,-271.98,0.00023611,2]
[423092544,1779838239000,-595.74,0.00022372,2]
[423092548,1779838239000,-10255.29951793,0.000225,2]
[423092561,1779838239000,-163.04,0.00023585,2]
[423092557,1779838239000,-166.66,0.00023412,2]
[423092559,1779838239000,-377.0,0.0002344,2]
[423092568,1779838239000,-166.66,0.00024095,2]
[423092566,1779838239000,-241.81204,0.00023849,14]
[423092565,1779838239000,-595.74,0.00023615,2]
[423092570,1779838239000,-231.3,0.00024324,2]
[423092555,1779838239000,-2090.06216786,0.00023156,2]
[423092572,1779838239000,-500.0,0.00024335,2]
[423092518,1779838239000,-151.0,0.00021379,2]
[423092547,1779838239000,-444.55,0.00022466,2]
[423092520,1779838239000,-151.0,0.00021379,2]
[423092502,1779838239000,-151.0,0.00021379,2]
[423092524,1779838239000,-1056.76,0.00021379,2]
[423092574,1779838239000,-500.0,0.00024335,2]
[423092469,1779838239000,-151.0,0.00021379,2]
[423092465,1779838239000,-151.0,0.00021379,2]
[423092467,1779838239000,-151.0,0.00021379,2]
[423092477,1779838239000,-151.0,0.00021379,2]
[423092475,1779838239000,-151.0,0.00021379,2]
[423092471,1779838239000,-151.0,0.00021379,2]
[423092473,1779838239000,-151.0,0.00021379,2]
[423092479,1779838239000,-151.0,0.00021379,2]
[423092481,1779838239000,-151.0,0.00021379,2]
[423092483,1779838239000,-151.0,0.00021379,2]
[423092487,1779838239000,-151.0,0.00021379,2]
[423092485,1779838239000,-151.0,0.00021379,2]
[423092498,1779838239000,-151.0,0.00021379,2]
[423092495,1779838239000,-151.0,0.00021379,2]
[423092496,1779838239000,-151.0,0.00021379,2]
[423092500,1779838239000,-151.0,0.00021379,2]
[423092489,1779838239000,-151.0,0.00021379,2]
[423092491,1779838239000,-151.0,0.00021379,2]
[423092493,1779838239000,-151.0,0.00021379,2]
[423092497,1779838239000,-151.0,0.00021379,2]
[423092504,1779838239000,-151.0,0.00021379,2]
[423092507,1779838239000,-151.0,0.00021379,2]
[423092505,1779838239000,-151.0,0.00021379,2]
[423092509,1779838239000,-151.0,0.00021379,2]
[423092516,1779838239000,-151.0,0.00021379,2]
[423092522,1779838239000,-246.483793,0.00021379,2]
[423092511,1779838239000,-151.0,0.00021379,2]
[423092576,1779838239000,-500.0,0.00024335,2]
[423092592,1779838239000,-508.0,0.00025082,2]
[423092580,1779838239000,-157215.9054888,0.00024336,2]
[423092642,1779838239000,-208.92835186,0.00029148,2]
[423092646,1779838239000,-508.0,0.00029307,6]
[423092648,1779838239000,-1763.64,0.00029342,120]
[423092650,1779838239000,-399.99999999,0.000294,2]
[423092656,1779838239000,-156.0,0.00029602,30]
[423092652,1779838239000,-156.08642863,0.00029602,30]
[423092654,1779838239000,-159.0,0.00029602,30]
[423092658,1779838239000,-159.0,0.00029602,30]
[423092660,1779838239000,-399.99999999,0.000297,2]
[423092662,1779838239000,-3678.31105432,0.00029833,2]
[423092664,1779838239000,-6122.88172682,0.000299,2]
[423092666,1779838239000,-399.99999999,0.0003,2]
[423092668,1779838239000,-201134.11119358,0.0003013,7]
[423092674,1779838239000,-15795.47190292,0.000302,2]
[423092672,1779838239000,-200.0,0.00030137,2]
[423092670,1779838239000,-2000.0,0.0003013,2]
[423092676,1779838239000,-231.3,0.00030239,2]
[423092686,1779838239000,-1636.34262574,0.0003084,2]
[423092688,1779838239000,-196.24591306,0.00030981,2]
[423092682,1779838239000,-156.0,0.00030602,30]
[423092678,1779838239000,-399.99999999,0.000303,2]
[423092681,1779838239000,-233.25491277,0.00030393,2]
[423092684,1779838239000,-3190.93345748,0.00030673,2]
[423092690,1779838239000,-292.23644009,0.00030981,7]
[423092697,1779838239000,-294.7757238,0.00030981,7]
[423092693,1779838239000,-221.13730874,0.00030981,2]
[423092578,1779838239000,-500.0,0.00024335,2]
[423092644,1779838239000,-160.0,0.00029148,2]
[423092640,1779838239000,-399.99999999,0.000291,2]
[423092695,1779838239000,-265.14262251,0.00030981,7]
[423092634,1779838239000,-163.04,0.00028302,120]
[423092638,1779838239000,-150.0,0.00029,2]
[423092582,1779838239000,-487.0,0.00024352,2]
[423092584,1779838239000,-584.03,0.00024352,2]
[423092588,1779838239000,-1000.0,0.00024658,2]
[423092590,1779838239000,-3190.93345748,0.0002506,2]
[423092699,1779838239000,-316.56053236,0.00030981,2]
[423092594,1779838239000,-2064.65592516,0.00025611,2]
[423092596,1779838239000,-2090.06216786,0.00025833,2]
[423092598,1779838239000,-231.3,0.00026296,2]
[423092600,1779838239000,-3678.31105439,0.00026385,2]
[423092602,1779838239000,-8258.62370065,0.00026423,2]